bitfinex/quotes_ETHUSD_20250511
["timestamp","ask_amount","ask_price","bid_price","bid_amount"]
[1746955181600,0.04058551,2506.0,2505.6,3.083]
[1746955181774,3.10458551,2506.0,2505.6,3.083]
[1746955182493,0.04058551,2506.3,2505.6,3.083]
[1746955182668,0.04058551,2506.3,2505.7,0.03990904]
[1746955182992,0.04058551,2506.3,2505.6,3.083]
[1746955183193,3.99018787,2506.2,2505.6,3.083]
[1746955183379,0.04058551,2506.1,2505.6,3.083]
[1746955183904,4.03087793,2506.1,2505.6,3.083]
[1746955184103,3.990484,2506.0,2505.2,0.03990737]
[1746955184404,0.04058551,2506.3,2505.3,3.062]
[1746955185192,10.05,2506.4,2505.4,8.03990358]
[1746955185394,10.09058551,2506.4,2505.5,0.12464376]
[1746955185982,0.7587,2506.9,2505.5,0.12464376]
[1746955185983,10.05,2507.3,2505.6,0.03990149]
[1746955186184,3.4659884,2507.2,2505.6,1.61600118]
[1746955186906,3.98867217,2507.1,2505.6,1.61600118]
[1746955187099,0.04058551,2507.0,2505.6,1.61600118]
[1746955187303,3.98901213,2506.9,2505.6,1.61600118]
[1746955187508,4.02978973,2506.8,2505.7,0.53100301]
[1746955187680,3.98979247,2506.4,2505.8,3.062]
[1746955187880,0.04058551,2506.3,2505.9,3.062]
[1746955188205,0.04058551,2506.3,2505.7,0.03989596]
[1746955188405,0.04058551,2506.3,2505.8,3.062]
[1746955189020,3.045,2506.6,2505.9,0.03990203]
[1746955189174,0.04058551,2506.5,2505.9,0.03990203]
[1746955189381,4.0303701,2506.5,2505.2,8.0]
[1746955189578,0.04058551,2506.5,2505.3,3.062]
[1746955189879,4.03023094,2506.5,2505.4,0.0399057]
[1746955190203,4.03026307,2506.5,2505.4,0.16454235]
[1746955190405,3.98978666,2506.4,2505.4,1.28719658]
[1746955190601,0.04058551,2506.3,2505.4,1.28719658]
[1746955191207,4.03059121,2506.3,2505.4,1.24729088]
[1746955191414,3.99010454,2506.2,2505.4,1.24729088]
[1746955191610,0.04058551,2506.1,2505.4,1.24729088]
[1746955191802,0.04058551,2506.1,2505.5,0.03990683]
[1746955192000,0.04058551,2506.1,2505.6,3.062]
[1746955192403,0.04058551,2506.3,2505.6,3.062]
[1746955192822,4.03054623,2506.3,2505.6,3.062]
[1746955193316,3.99020496,2506.2,2505.6,3.062]
[1746955193521,4.03088456,2506.1,2505.1,13.158]
[1746955193702,3.99109188,2505.6,2505.1,13.158]
[1746955194030,0.04058551,2505.5,2505.2,3.062]
[1746955194928,0.04058551,2505.6,2505.2,3.062]
[1746955195497,0.04058551,2505.8,2505.2,4.684]
[1746955195926,0.04058551,2505.8,2505.2,4.72391222]
[1746955196405,0.04058551,2505.9,2505.2,4.72391222]
[1746955196613,0.04058551,2505.9,2505.2,3.10191222]
[1746955196914,4.03117824,2505.9,2505.2,3.10191222]
[1746955197228,3.99074977,2505.8,2505.2,3.062]
[1746955197439,0.04058551,2505.7,2505.2,3.062]
[1746955198036,3.002,2505.9,2505.3,0.03991364]
[1746955198639,0.04058551,2505.8,2505.2,3.062]
[1746955198936,2.998,2506.0,2505.3,1.62599136]
[1746955199341,3.03858551,2506.0,2505.3,1.62599136]
[1746955199547,7.02904089,2506.0,2505.3,1.62599136]
[1746955199734,3.03858551,2506.0,2505.2,3.062]
[1746955200045,2.998,2506.0,2505.3,0.03990792]
[1746955201032,2.998,2506.0,2505.3,8.03990792]
[1746955201238,2.998,2506.0,2505.3,8.16454563]
[1746955202319,2.998,2506.0,2505.4,0.12463771]
[1746955202553,10.05,2507.1,2505.8,3.69402894]
[1746955202739,0.04058551,2507.0,2506.0,8.0]
[1746955202927,0.04058551,2507.0,2505.4,1.24729227]
[1746955202928,3.98967027,2506.5,2505.4,1.24729227]
[1746955203133,3.99019095,2506.2,2505.5,3.063]
[1746955203332,0.04058551,2506.1,2505.5,3.063]
[1746955203529,14.04042298,2506.0,2505.4,3.063]
[1746955203854,0.04058551,2505.9,2505.4,3.063]
[1746955204049,10.09058551,2506.0,2505.4,3.063]
[1746955204255,10.05,2506.0,2505.5,0.0399092]
[1746955204551,8.04058551,2506.6,2505.4,3.3732912]
[1746955204755,8.04058551,2506.6,2505.5,0.03990032]
[1746955205056,0.04058551,2506.6,2505.5,0.03990032]
[1746955205376,3.98863487,2507.2,2505.7,8.0]
[1746955205555,3.9889775,2507.0,2505.8,4.32400333]
[1746955205853,0.04058551,2506.9,2505.9,0.03989619]
[1746955206057,0.04058551,2507.0,2506.0,3.063]
[1746955206234,0.04058551,2507.0,2506.1,0.03989299]
[1746955206433,0.04058551,2507.0,2506.1,0.35018229]
[1746955206631,0.04058551,2507.0,2506.1,0.47478273]
[1746955207817,0.04058551,2507.2,2506.1,0.47478273]
[1746955208017,0.04058551,2507.2,2506.1,8.47478273]
[1746955208755,0.04058551,2507.3,2506.1,8.43488974]
[1746955208959,5.73870415,2507.3,2506.2,1.14978897]
[1746955209156,5.73870415,2507.3,2506.2,1.57404116]
[1746955209359,1.75026426,2507.3,2506.3,0.03989097]
[1746955209559,1.75026426,2507.3,2506.2,1.27438941]
[1746955209767,1.75026426,2507.3,2506.2,0.12460044]
[1746955209943,3.98897697,2507.0,2506.3,3.062]
[1746955210131,4.02968917,2506.9,2506.4,3.062]
[1746955210329,4.02968917,2506.9,2506.1,0.12460044]
[1746955210330,0.04058551,2506.9,2506.5,3.062]
[1746955210738,4.02960635,2506.9,2506.5,3.062]
[1746955210938,4.7487481,2506.9,2506.5,3.062]
[1746955211232,0.75972726,2506.9,2506.5,3.062]
[1746955211563,3.016,2507.0,2506.5,3.062]
[1746955212272,0.04058551,2507.1,2506.5,3.062]
[1746955212441,0.04058551,2507.3,2506.6,0.03989257]
[1746955213945,3.98859654,2507.2,2506.5,3.062]
[1746955214167,0.04058551,2507.1,2506.5,3.062]
[1746955215362,0.04058551,2507.2,2506.5,3.062]
[1746955215563,1.7502877,2507.2,2506.5,3.062]
[1746955216070,1.7502877,2507.2,2506.2,13.159]
[1746955216071,3.98899677,2506.9,2506.2,13.159]
[1746955216370,3.98952284,2506.6,2506.3,3.007]
[1746955216570,3.04258551,2506.8,2506.3,3.007]
[1746955216777,3.98956618,2506.6,2506.3,3.007]
[1746955216979,0.04058551,2506.5,2506.2,13.159]
[1746955217167,0.04058551,2506.5,2506.4,3.007]
[1746955217369,3.98980664,2506.4,2506.2,13.159]
[1746955217556,10.05,2506.5,2505.9,3.007]
[1746955217757,0.04058551,2506.4,2506.0,3.007]
[1746955218146,10.05,2506.5,2506.0,3.007]
[1746955218542,0.04058551,2506.4,2506.0,3.007]
[1746955219083,4.03048473,2506.4,2506.0,3.007]
[1746955219244,0.04058551,2506.4,2506.0,3.007]
[1746955219450,10.05,2506.5,2506.0,3.3077]
[1746955219892,10.05,2506.5,2506.1,0.03989922]
[1746955220183,10.05,2507.1,2506.0,3.3077]
[1746955220394,0.04058551,2507.0,2506.0,3.3077]
[1746955220586,0.04058551,2507.0,2506.1,0.49526112]
[1746955220774,0.04058551,2507.0,2506.1,8.49526112]
[1746955221868,0.04058551,2507.3,2506.1,8.49526112]
[1746955222049,0.04058551,2507.3,2506.2,0.12459857]
[1746955222883,0.04058551,2507.4,2506.3,0.03988798]
[1746955224301,0.04058551,2507.4,2506.2,0.12459857]
[1746955224506,0.04058551,2507.4,2506.2,1.27083543]
[1746955225993,0.04058551,2507.4,2506.3,0.03988802]
[1746955226876,0.04058551,2507.4,2506.3,3.73391696]
[1746955227087,10.05,2507.5,2506.5,8.0]
[1746955227373,0.04058551,2507.4,2506.6,13.158]
[1746955227721,3.98962696,2506.5,2506.4,3.007]
[1746955228010,3.98930865,2506.7,2506.2,3.007]
[1746955228217,10.09058551,2506.6,2505.6,13.158]
[1746955228518,10.09058551,2506.6,2504.5,0.31]
[1746955228519,14.29402894,2506.5,2504.5,3.69402894]
[1746955228808,0.55,2506.3,2505.0,13.157]
[1746955229015,3.99068899,2505.9,2505.0,14.4727]
[1746955229187,0.04058551,2505.8,2505.0,14.4727]
[1746955229387,0.04058551,2505.8,2505.1,0.03991441]
[1746955229571,10.05,2505.9,2505.2,3.007]
[1746955229899,0.04058551,2506.3,2505.3,8.16456083]
[1746955230071,3.99010338,2506.3,2505.4,4.12415608]
[1746955230274,0.04058551,2506.2,2505.5,0.039909]
[1746955230675,0.04058551,2506.4,2505.5,0.039909]
[1746955231013,0.04058551,2506.4,2505.4,4.12415608]
[1746955231305,0.04058551,2506.4,2505.5,8.16456052]
[1746955231505,0.04058551,2506.4,2505.6,1.22887166]
[1746955231717,4.03045889,2506.4,2505.5,8.12465452]
[1746955231931,0.04058551,2506.4,2505.5,8.12465452]
[1746955232095,0.04058551,2506.4,2505.6,0.03990631]
[1746955232497,0.04058551,2506.4,2505.6,0.16456083]
[1746955233613,3.02958551,2506.5,2505.6,0.16456083]
[1746955233820,3.02958551,2506.5,2505.6,1.39343252]
[1746955234191,7.01922619,2506.5,2505.6,0.12465452]
[1746955234596,3.98990687,2506.4,2505.6,0.12465452]
[1746955234796,0.04058551,2506.3,2505.6,0.12465452]
[1746955235226,14.04019209,2506.2,2505.6,3.13165452]
[1746955235430,3.99043929,2506.0,2505.6,3.13165452]
[1746955235623,0.04058551,2505.9,2505.6,3.13165452]
[1746955235935,10.05,2506.2,2505.7,0.03990947]
[1746955236305,10.05,2506.2,2505.6,3.007]
[1746955236696,10.05,2506.2,2505.7,0.03990406]
[1746955236940,10.05,2506.5,2505.7,8.34459447]
[1746955237118,0.04058551,2506.4,2505.7,8.34459447]
[1746955238203,0.04058551,2506.4,2505.8,0.12462216]
[1746955240225,10.05,2506.5,2505.8,0.12462216]
[1746955240419,0.04058551,2506.4,2505.8,0.12462216]
[1746955240627,5.33740935,2506.4,2505.8,0.12462216]
[1746955240933,1.34754406,2506.4,2505.8,0.12462216]
[1746955241432,5.33735137,2506.4,2505.8,0.12462216]
[1746955241641,1.34754406,2506.4,2505.6,3.007]
[1746955242049,5.3373475,2506.4,2505.6,3.007]
[1746955242213,0.04058551,2506.4,2505.6,3.007]
[1746955242413,3.01158551,2506.4,2505.6,3.007]
[1746955242720,7.00137439,2506.4,2505.6,3.007]
[1746955242906,3.98999471,2506.3,2505.6,3.007]
[1746955243110,0.04058551,2506.2,2505.7,3.008]
[1746955243313,0.04058551,2506.2,2505.8,3.008]
[1746955243713,10.05,2506.5,2505.9,8.0399037]
[1746955244061,10.05,2507.0,2506.1,8.0]
[1746955244367,10.05,2507.3,2506.2,0.03989161]
[1746955244542,0.04058551,2507.2,2506.2,0.03989161]
[1746955244716,0.04058551,2507.2,2506.2,0.03989162]
[1746955244917,0.04058551,2507.2,2506.2,1.14228078]
[1746955245408,10.05,2507.7,2506.4,8.0]
[1746955245754,0.04058551,2507.6,2506.5,3.02088414]
[1746955245958,10.05,2507.8,2507.0,8.0]
[1746955246113,10.09058551,2508.5,2507.2,11.69402894]
[1746955246448,10.05,2508.5,2507.3,4.62296105]
[1746955246612,0.04058551,2508.4,2507.4,8.0]
[1746955246810,10.05,2508.5,2507.5,0.03986892]
[1746955247053,10.09058551,2508.8,2507.7,8.0]
[1746955247254,10.09058551,2508.8,2507.9,8.0]
[1746955247552,10.09058551,2508.8,2508.0,0.73033764]
[1746955249155,3.98495067,2509.5,2508.0,0.69047368]
[1746955249325,14.81288718,2509.7,2508.0,0.69047368]
[1746955249326,13.07358551,2509.4,2508.0,0.73033764]
[1746955249522,13.033,2509.4,2508.0,0.73033764]
[1746955249721,1.34388551,2509.3,2508.1,1.54073666]
[1746955249914,1.34388551,2509.3,2508.2,0.03985889]
[1746955250109,3.98546981,2509.2,2508.2,0.03985889]
[1746955250315,0.04058551,2509.1,2508.3,2.98]
[1746955250711,0.04058551,2509.1,2508.4,0.03986286]
[1746955250913,0.04058551,2509.1,2508.3,2.98]
[1746955251115,0.04058551,2509.2,2508.3,3.278]
[1746955251353,0.04058551,2509.2,2508.4,8.0]
[1746955252012,0.04058551,2509.2,2508.6,8.0]
[1746955252219,10.09058551,2511.0,2509.1,3.69402894]
[1746955252414,0.04058551,2511.0,2509.5,8.0]
[1746955252728,3.98288727,2510.8,2509.6,2.98]
[1746955252925,0.11139891,2510.9,2509.7,8.0]
[1746955252926,0.04058551,2510.7,2509.7,8.0]
[1746955253126,0.1890335,2510.7,2509.8,0.0398392]
[1746955253417,0.14844799,2510.7,2510.0,8.0]
[1746955253643,0.14844799,2510.7,2510.1,1.13782716]
[1746955253841,0.04058551,2511.1,2510.2,2.98]
[1746955254028,0.11133599,2510.7,2510.3,2.98]
[1746955254214,7.4213727,2512.5,2510.4,0.03983048]
[1746955254416,0.11133599,2510.7,2510.5,13.153]
[1746955254617,3.69402894,2512.0,2510.6,11.111]
[1746955254847,0.4099884,2511.9,2510.7,2.4264]
[1746955255047,3.9813672,2511.7,2510.7,2.4264]
[1746955255213,0.04058551,2511.6,2510.6,3.111]
[1746955255414,4.47232894,2511.5,2510.1,3.11]
[1746955255652,0.04058551,2511.4,2510.3,8.0]
[1746955255948,0.15214169,2511.4,2510.4,3.14982664]
[1746955256153,4.24402894,2511.8,2510.4,3.14982664]
[1746955256154,0.7783,2513.8,2510.6,3.69402894]
[1746955256326,29.72026529,2515.6,2511.8,0.55]
[1746955256327,3.69402894,2513.9,2511.8,0.55]
[1746955256534,3.97932016,2513.0,2512.0,8.0]
[1746955256720,3.97898029,2513.3,2512.0,8.0]
[1746955256922,3.342,2513.5,2512.0,8.0]
[1746955257116,0.3342,2513.4,2512.1,1.16579637]
[1746955257345,3.97788297,2513.9,2512.1,1.16180903]
[1746955257652,3.97788297,2513.9,2512.0,11.9984357]
[1746955257653,3.97946595,2512.9,2512.0,3.26]
[1746955257971,3.97973746,2512.8,2512.1,0.0398019]
[1746955258259,3.98073325,2512.1,2508.6,0.1]
[1746955258461,0.55,2511.6,2509.5,7.08502894]
[1746955258619,0.0398019,2511.5,2510.7,3.69402894]
[1746955258831,0.0398019,2512.2,2510.8,0.0398173]
[1746955259025,3.98210357,2511.3,2510.9,3.391]
[1746955259225,3.413,2511.7,2510.6,13.141]
[1746955259530,0.0398019,2511.6,2510.3,3.391]
[1746955259735,3.416,2511.5,2510.4,3.7301]
[1746955259932,3.98221037,2511.2,2510.5,3.391]
[1746955260160,3.98273397,2510.9,2510.5,3.391]
[1746955260336,0.0398019,2511.3,2510.6,0.03982907]
[1746955260531,0.0398019,2511.3,2510.5,3.391]
[1746955260731,3.415,2511.2,2510.5,3.391]
[1746955260955,0.0398019,2511.1,2510.5,3.391]
[1746955261255,3.98268715,2510.9,2510.5,3.391]
[1746955261457,3.98253298,2511.0,2510.5,3.391]
[1746955261663,0.0398019,2511.1,2510.5,3.391]
[1746955261882,1.21625525,2511.1,2510.4,3.391]
[1746955262085,3.98289501,2510.8,2510.4,3.391]
[1746955262287,0.0398019,2510.7,2510.4,3.391]
[1746955262750,0.34548019,2511.2,2510.5,0.03983341]
[1746955262949,0.0398019,2511.1,2510.5,8.03983341]
[1746955263148,0.7767,2512.3,2510.5,13.48639506]
[1746955263378,0.0398019,2512.4,2511.0,8.0]
[1746955263590,0.7767,2512.8,2511.2,8.0]
[1746955263591,3.4628019,2512.7,2511.2,8.0]
[1746955263909,4.01967369,2512.7,2511.3,0.03980513]
[1746955264068,0.74426737,2512.6,2511.3,2.79938051]
[1746955264400,0.0398019,2512.5,2511.4,8.03980535]
[1746955264606,3.423,2512.8,2511.4,8.03980535]
[1746955264770,3.4538019,2513.1,2511.4,8.03980535]
[1746955264958,3.97962309,2512.9,2511.4,8.03980535]
[1746955265290,0.0398019,2513.0,2511.4,8.03980535]
[1746955265513,0.0398019,2513.0,2511.5,1.62857475]
[1746955265695,0.0398019,2513.0,2511.6,0.03979942]
[1746955266253,0.0398019,2513.0,2511.1,13.14]
[1746955266254,3.98117202,2511.9,2511.1,13.14]
[1746955266454,3.421,2511.9,2511.2,3.42981575]
[1746955266650,0.0398019,2511.8,2511.2,3.39]
[1746955266868,10.05,2511.7,2510.7,3.39]
[1746955267067,10.05,2511.7,2510.3,3.39]
[1746955267068,3.98297491,2510.7,2510.3,3.39]
[1746955267267,3.98327026,2510.5,2509.7,3.39]
[1746955267576,3.9844041,2509.8,2509.3,3.39]
[1746955267762,3.98428936,2509.9,2509.3,3.39]
[1746955267965,3.426,2510.4,2509.3,3.729]
[1746955268165,0.0398019,2510.3,2509.3,3.729]
[1746955268365,0.0398019,2510.3,2509.0,13.136]
[1746955268703,3.9838984,2510.2,2509.1,3.4298464]
[1746955268993,0.0398019,2510.4,2509.1,3.4298464]
[1746955268994,0.0398019,2510.1,2509.1,3.39]
[1746955269195,3.98406184,2510.1,2509.2,0.0398462]
[1746955269398,0.83658546,2510.0,2509.1,3.39]
[1746955269601,0.0398019,2510.1,2509.2,0.03984681]
[1746955269798,0.0398019,2510.1,2509.1,3.39]
[1746955270107,4.02323798,2510.4,2509.2,3.39]
[1746955270305,0.0398019,2510.4,2509.3,0.03984064]
[1746955270469,0.0398019,2511.0,2509.5,8.0]
[1746955270668,0.0398019,2511.0,2509.7,8.0]
[1746955270910,4.77351703,2511.3,2509.7,8.0]
[1746955270911,4.02204096,2511.2,2509.8,0.03983192]
[1746955271087,0.0398019,2511.2,2509.9,3.39]
[1746955271289,3.4778019,2511.2,2510.0,0.03983196]
[1746955271590,0.0398019,2511.2,2510.0,8.33951065]
[1746955271792,0.0398019,2511.7,2510.3,8.0]
[1746955272109,0.0398019,2511.8,2510.5,8.0]
[1746955272307,0.0398019,2512.5,2510.7,8.0]
[1746955272482,0.0398019,2512.5,2510.8,0.03980732]
[1746955272685,3.98029653,2512.4,2510.8,0.03980732]
[1746955273018,3.445,2512.8,2511.1,8.0]
[1746955273307,4.01972473,2512.7,2511.2,3.47880103]
[1746955273479,0.0398019,2513.1,2511.3,11.42980511]
[1746955273686,3.97982493,2512.7,2511.3,11.39]
[1746955273878,0.0398019,2512.6,2511.3,11.39]
[1746955274073,0.0398019,2512.6,2511.4,1.4829]
[1746955274268,0.0398019,2512.6,2510.8,1.6876369]
[1746955274472,0.55,2512.1,2510.1,5.01865106]
[1746955274712,3.98202734,2511.3,2510.5,3.39]
[1746955274895,0.0398019,2511.2,2510.5,3.39]
[1746955275099,3.4948019,2511.2,2510.5,3.39]
[1746955275276,7.47708349,2511.2,2510.5,3.39]
[1746955275474,3.98236021,2511.1,2510.5,3.39]
[1746955275688,0.0398019,2511.1,2510.5,3.39]
[1746955275906,3.4948019,2511.2,2510.6,0.0398283]
[1746955276312,3.4948019,2511.2,2510.6,3.39]
[1746955276817,4.0221523,2511.1,2510.6,3.39]
[1746955277019,4.02224295,2511.1,2510.6,3.39]
[1746955277187,0.7987,2511.9,2510.7,0.03982859]
[1746955277384,5.44656165,2512.4,2510.6,5.0428]
[1746955277385,3.98177603,2511.5,2510.6,5.0428]
[1746955277711,0.7987,2512.3,2510.7,0.03982153]
[1746955278020,3.464,2511.9,2510.7,8.0]
[1746955278319,3.98154064,2511.6,2510.7,0.03981958]
[1746955278617,3.464,2511.9,2510.7,0.54808293]
[1746955278618,0.0398019,2511.5,2510.7,0.54808293]
[1746955278816,4.77922543,2512.3,2510.7,8.54808293]
[1746955279003,0.0398019,2512.2,2510.7,8.50826196]
[1746955279319,0.0398019,2512.2,2510.8,0.03981588]
[1746955279526,10.05,2512.2,2510.8,0.03981588]
[1746955279726,0.0398019,2512.1,2510.8,1.39890366]
[1746955279891,3.98148555,2511.7,2510.8,1.35908778]
[1746955280092,13.5568019,2511.6,2510.9,3.39]
[1746955280293,0.0398019,2511.5,2510.9,3.39]
[1746955280512,13.517,2511.6,2510.9,3.39]
[1746955281022,10.05,2511.6,2510.9,3.39]
[1746955281226,0.0398019,2511.5,2510.9,3.39]
[1746955281532,10.05,2511.6,2511.0,0.37881926]
[1746955282021,10.05,2511.6,2511.0,8.37881926]
[1746955282597,10.05,2511.6,2511.0,8.339]
[1746955282804,10.05,2511.6,2511.0,0.339]
[1746955283020,0.0398019,2511.5,2510.9,3.39]
[1746955283194,10.05,2511.6,2510.9,3.39]
[1746955284903,10.05,2511.6,2510.4,13.138]
[1746955285109,0.0398019,2511.5,2510.5,14.835]
[1746955285430,0.0398019,2511.5,2510.6,2.7973]
[1746955285602,10.0898019,2511.5,2510.7,3.389]
[1746955285808,3.98226237,2511.2,2510.7,3.389]
[1746955286006,0.0398019,2511.1,2510.7,3.389]
[1746955286202,0.0398019,2511.4,2510.4,13.138]
[1746955286428,3.98215992,2511.2,2510.8,3.389]
[1746955286633,3.98215992,2511.2,2510.4,13.138]
[1746955286634,0.0398019,2511.1,2510.4,16.527]
[1746955287041,3.98240888,2511.1,2510.4,16.527]
[1746955287234,0.0398019,2511.0,2510.4,16.527]
[1746955287730,0.0398019,2511.0,2510.4,13.138]
[1746955287929,3.98295296,2510.7,2509.8,3.39]
[1746955288131,10.0898019,2510.6,2509.7,3.39]
[1746955288335,10.0898019,2510.6,2509.8,0.03984257]
[1746955288744,10.0898019,2510.6,2509.3,13.135]
[1746955289040,10.0898019,2510.6,2509.4,3.432]
[1746955289422,3.9844817,2509.8,2509.4,3.432]
[1746955289622,0.0398019,2509.7,2509.4,3.432]
[1746955289831,0.0398019,2510.0,2509.5,3.432]
[1746955290017,3.98416235,2510.0,2509.5,3.432]
[1746955290208,3.432,2510.2,2509.5,3.432]
[1746955290209,4.02402542,2509.9,2509.5,3.432]
[1746955290547,0.0398019,2509.9,2509.5,3.432]
[1746955291206,0.0398019,2509.9,2509.4,1.6567]
[1746955291453,10.05,2511.0,2509.5,4.63269389]
[1746955291623,0.57425863,2511.1,2509.7,5.44656165]
[1746955291846,4.55660446,2511.1,2509.8,0.03982527]
[1746955292047,0.57425863,2511.1,2509.7,0.03982956]
[1746955292373,0.57425863,2511.1,2509.7,1.65438191]
[1746955292574,3.98280778,2510.8,2509.7,1.65438191]
[1746955292775,3.98303353,2510.7,2509.8,3.433]
[1746955292986,3.98285006,2510.8,2509.8,3.433]
[1746955293284,3.477,2511.0,2509.9,0.03983554]
[1746955293447,0.57425863,2511.1,2509.9,0.54857433]
[1746955293772,0.57425863,2511.1,2509.9,8.54857433]
[1746955296278,0.57425863,2511.1,2509.9,8.50873879]
[1746955296986,0.57425863,2511.1,2509.9,0.50873879]
[1746955297274,0.57425863,2511.1,2510.1,8.0]
[1746955297474,0.57425863,2511.1,2510.2,1.1871127]
[1746955297679,0.57425863,2511.1,2510.2,1.14728252]
[1746955297868,0.57425863,2511.1,2510.2,1.18711017]
[1746955298878,0.57425863,2511.1,2510.2,1.14728252]
[1746955299578,0.57425863,2511.1,2510.3,3.47282125]
[1746955300476,0.57425863,2511.1,2510.3,0.03982125]
[1746955300665,0.57425863,2511.1,2510.4,3.432]
[1746955300865,0.57425863,2511.1,2510.5,0.03982501]
[1746955302068,0.57425863,2511.1,2510.6,3.432]
[1746955302378,0.57425863,2511.1,2510.7,3.432]
[1746955302558,0.57425863,2511.1,2510.8,3.432]
[1746955303492,0.57425863,2511.1,2510.2,0.03982675]
[1746955303693,0.57425863,2511.1,2510.3,3.432]
[1746955303854,4.55661782,2511.1,2510.3,3.432]
[1746955304189,3.98272423,2510.9,2510.4,3.432]
[1746955304387,3.98257452,2511.0,2510.4,3.432]
[1746955304557,3.98264208,2510.9,2510.4,3.432]
[1746955305261,3.408,2511.0,2510.4,3.432]
[1746955305476,8.18701509,2511.0,2510.4,3.432]
[1746955305674,0.7851,2510.8,2509.9,0.50873879]
[1746955305994,3.98317283,2510.6,2510.3,3.432]
[1746955306166,3.9832587,2510.6,2510.1,3.432]
[1746955306361,10.05,2510.7,2510.1,3.432]
[1746955306589,10.05,2510.7,2510.2,0.03983414]
[1746955306777,10.05,2510.7,2510.3,3.433]
[1746955306975,10.05,2510.7,2510.4,3.433]
[1746955307184,3.9831116,2510.6,2510.5,3.433]
[1746955307382,3.98331453,2510.5,2510.2,3.433]
[1746955307704,3.98317724,2510.6,2510.2,3.433]
[1746955307889,3.98328413,2510.5,2509.4,0.03983825]
[1746955308087,3.98328413,2510.5,2509.5,3.433]
[1746955308299,3.98328413,2510.5,2509.6,1.18712293]
[1746955308767,3.98328413,2510.5,2509.7,3.433]
[1746955308963,10.05,2510.4,2509.7,3.433]
[1746955309168,7.36960716,2510.3,2509.7,3.433]
[1746955309414,3.98390502,2510.1,2509.7,3.433]
[1746955309697,3.98412295,2510.0,2509.7,3.433]
[1746955310208,3.386,2510.3,2509.7,3.433]
[1746955310373,10.05,2510.4,2509.8,0.38314337]
[1746955311000,10.05,2510.4,2509.8,0.38313942]
[1746955311380,10.05,2510.4,2509.8,0.3433]
[1746955311581,0.8252,2510.2,2509.6,3.433]
[1746955311803,4.80904074,2510.2,2509.6,3.433]
[1746955312000,3.98410546,2510.0,2509.6,3.433]
[1746955312279,3.98430097,2509.9,2509.6,3.433]
[1746955312475,3.98430097,2509.9,2509.3,13.135]
[1746955312476,10.05,2509.9,2509.3,13.135]
[1746955312675,10.05,2509.9,2509.4,3.433]
[1746955312881,14.0342728,2509.9,2509.4,3.433]
[1746955313095,10.05,2509.9,2509.4,3.433]
[1746955313276,10.05,2510.5,2509.5,0.03984999]
[1746955313482,10.05,2510.6,2509.5,0.03984999]
[1746955313802,14.03319642,2510.6,2509.5,1.83198499]
[1746955314215,10.05,2510.6,2509.5,9.83198499]
[1746955314417,10.05,2510.6,2509.5,9.792135]
[1746955314987,10.05,2510.6,2509.6,3.47283571]
[1746955315714,10.05,2510.6,2509.6,3.433]
[1746955315919,10.05,2510.6,2509.7,1.3225135]
[1746955316082,10.05,2510.6,2509.8,0.03983715]
[1746955316931,10.05,2510.9,2509.8,0.03983715]
[1746955317116,10.05,2510.9,2509.8,0.03983321]
[1746955317827,14.0326707,2510.9,2509.8,0.03983321]
[1746955318015,10.05,2510.9,2509.8,9.34949333]
[1746955318220,10.05,2510.9,2509.8,1.34949333]
[1746955318426,10.05,2510.9,2509.7,1.3225135]
[1746955318735,3.98339716,2510.5,2509.5,1.792135]
[1746955318897,3.98409194,2510.0,2509.6,3.354]
[1746955319097,3.352,2510.2,2509.6,3.354]
[1746955319298,7.3358364,2510.2,2509.6,3.354]
[1746955319732,3.352,2510.2,2509.6,3.354]
[1746955320706,3.98411465,2510.0,2509.6,3.354]
[1746955321235,3.341,2510.1,2509.6,3.354]
[1746955321534,10.05,2511.0,2509.7,0.03984805]
[1746955321698,10.05,2511.0,2509.7,11.66953343]
[1746955321899,10.05,2511.0,2509.7,11.79394557]
[1746955322199,10.05,2511.0,2509.8,1.51479456]
[1746955322625,10.05,2511.0,2509.8,1.6392067]
[1746955323612,10.05,2511.0,2509.9,6.711]
[1746955323937,10.05,2511.0,2510.0,0.12441214]
[1746955324141,1.3515,2510.7,2510.0,0.12441214]
[1746955324303,5.33540502,2510.1,2510.0,0.12441214]
[1746955324497,9.4802735,2510.1,2510.0,0.12441214]
[1746955324810,3.98468225,2509.7,2508.7,0.12441214]
[1746955325015,3.98444432,2509.8,2509.2,3.354]
[1746955325626,3.98447115,2509.8,2509.2,3.354]
[1746955325943,3.98456288,2509.7,2509.2,3.354]
[1746955326146,5.49636848,2510.1,2507.8,3.66953343]
[1746955326147,3.98491328,2509.5,2507.8,3.66953343]
[1746955326334,3.98491328,2509.5,2508.1,3.385]
[1746955326540,0.8015,2509.3,2507.9,1.68075334]
[1746955326737,0.8015,2509.1,2508.1,3.354]
[1746955327053,0.8015,2508.8,2507.2,8.36411235]
[1746955327348,0.8015,2508.8,2507.7,1.3138]
[1746955327647,3.98663007,2508.4,2507.4,3.354]
[1746955327943,0.8015,2508.8,2507.4,3.354]
[1746955327944,3.98631231,2508.6,2507.5,0.03987422]
[1746955328250,3.391,2508.7,2507.5,0.03987422]
[1746955328650,0.8015,2508.8,2507.5,0.03987422]
[1746955328856,3.389,2508.6,2507.5,8.03986944]
[1746955329013,3.389,2508.6,2507.6,1.13938694]
[1746955329214,3.389,2508.6,2507.7,0.03986945]
[1746955329725,14.184,2509.1,2507.7,0.03986945]
[1746955330428,13.434,2509.1,2507.7,0.03986945]
[1746955331214,0.75,2509.5,2507.7,0.03986945]
[1746955331419,3.376,2509.4,2507.9,8.0]
[1746955331616,3.376,2509.4,2508.1,8.0]
[1746955331817,3.376,2509.4,2508.2,3.355]
[1746955331818,3.98545068,2509.2,2508.2,3.355]
[1746955332025,0.55,2509.3,2508.3,0.03986071]